[Event "Titled Tuesday Blitz July 26 Early 2022"]
[White "Legenia, Artem"]
[Black "Melikhov, Evgeny V."]
[WhiteFideId "14136945"]
[BlackFideId "4122046"]
[WhiteElo "1936"]
[BlackElo "1995"]
[Result "1/2-1/2"]
[Round "10"]
[TimeControl "180+1"]
[Date "2022.07.27"]
[WhiteClock "0:00:12"]
[BlackClock "0:00:14"]

1. Nf3 {[%clk 0:02:59]}  f5 {[%clk 0:02:59]} 2. g3 {[%clk 0:02:57]}  Nf6 {[%clk 0:02:59]} 3. Bg2 {[%clk 0:02:58]}  g6 {[%clk 0:03:00]} 4. O-O {[%clk 0:02:58]}  Bg7 {[%clk 0:03:00]} 5. d3 {[%clk 0:02:58]}  O-O {[%clk 0:03:00]} 6. c3 {[%clk 0:02:58]}  d6 {[%clk 0:03:00]} 7. Nbd2 {[%clk 0:02:58]}  e5 {[%clk 0:03:00]} 8. e4 {[%clk 0:02:57]}  f4 {[%clk 0:02:50]} 9. h3 {[%clk 0:02:41]}  Nh5 {[%clk 0:02:40]} 10. g4 {[%clk 0:02:41]}  Nf6 {[%clk 0:02:39]} 11. Ne1 {[%clk 0:02:37]}  h5 {[%clk 0:02:35]} 12. f3 {[%clk 0:02:36]}  Nh7 {[%clk 0:02:33]} 13. Nc2 {[%clk 0:02:30]}  Bf6 {[%clk 0:02:29]} 14. d4 {[%clk 0:02:28]}  Nc6 {[%clk 0:02:27]} 15. d5 {[%clk 0:02:24]}  Ne7 {[%clk 0:02:24]} 16. c4 {[%clk 0:02:23]}  Bh4 {[%clk 0:02:24]} 17. Ne1 {[%clk 0:02:21]}  Bg3 {[%clk 0:02:23]} 18. Nd3 {[%clk 0:02:20]}  Kh8 {[%clk 0:02:11]} 19. b4 {[%clk 0:02:20]}  Ng8 {[%clk 0:02:07]} 20. c5 {[%clk 0:02:20]}  Qh4 {[%clk 0:02:05]} 21. Nc4 {[%clk 0:02:17]}  Ng5 {[%clk 0:02:04]} 22. Qe2 {[%clk 0:02:14]}  Nxh3+ {[%clk 0:02:02]} 23. Bxh3 {[%clk 0:02:14]}  Qxh3 {[%clk 0:02:03]} 24. Qg2 {[%clk 0:02:07]}  Qxg2+ {[%clk 0:02:03]} 25. Kxg2 {[%clk 0:02:07]}  hxg4 {[%clk 0:02:03]} 26. cxd6 {[%clk 0:01:53]}  cxd6 {[%clk 0:02:02]} 27. Nxd6 {[%clk 0:01:53]}  gxf3+ {[%clk 0:02:01]} 28. Kxf3 {[%clk 0:01:52]}  Nf6 {[%clk 0:01:58]} 29. Nxe5 {[%clk 0:01:51]}  Kg7 {[%clk 0:01:45]} 30. Bb2 {[%clk 0:01:51]}  Rh8 {[%clk 0:01:21]} 31. Rh1 {[%clk 0:01:42]}  Bh3 {[%clk 0:01:19]} 32. Nef7 {[%clk 0:01:22]}  Bg4+ {[%clk 0:01:13]} 33. Kg2 {[%clk 0:01:22]}  Rh5 {[%clk 0:01:06]} 34. Rxh5 {[%clk 0:01:15]}  gxh5 {[%clk 0:01:03]} 35. Ne5 {[%clk 0:00:52]}  Rf8 {[%clk 0:00:33]} 36. Nxg4 {[%clk 0:00:47]}  hxg4 {[%clk 0:00:33]} 37. Nf5+ {[%clk 0:00:47]}  Kg6 {[%clk 0:00:32]} 38. Bxf6 {[%clk 0:00:37]}  Kxf6 {[%clk 0:00:27]} 39. Rh1 {[%clk 0:00:36]}  Ke5 {[%clk 0:00:26]} 40. Nxg3 {[%clk 0:00:35]}  fxg3 {[%clk 0:00:26]} 41. Kxg3 {[%clk 0:00:36]}  Kxe4 {[%clk 0:00:25]} 42. Rh7 {[%clk 0:00:32]}  Kxd5 {[%clk 0:00:20]} 43. Rxb7 {[%clk 0:00:32]}  Rf3+ {[%clk 0:00:20]} 44. Kxg4 {[%clk 0:00:32]}  Ra3 {[%clk 0:00:20]} 45. b5 {[%clk 0:00:26]}  Kc5 {[%clk 0:00:17]} 46. Kf5 {[%clk 0:00:17]}  Rxa2 {[%clk 0:00:16]} 47. Ke6 {[%clk 0:00:17]}  Ra5 {[%clk 0:00:15]} 48. Kd7 {[%clk 0:00:14]}  Rxb5 {[%clk 0:00:14]} 49. Rxa7 {[%clk 0:00:14]}  Kb4 {[%clk 0:00:14]} 50. Kc7 {[%clk 0:00:12]} 1/2-1/2


[Site "https://www.chess.com"]

[Event "Titled Tuesday Blitz July 26 Early 2022"]
[White "Lehtosaari, Mauri"]
[Black "Peiris, T G M"]
[WhiteFideId "501999"]
[BlackFideId "9901310"]
[WhiteElo "2504"]
[BlackElo "2022"]
[Result "1-0"]
[Round "10"]
[TimeControl "180+1"]
[Date "2022.07.27"]
[WhiteClock "0:00:08"]
[BlackClock "0:00:01"]

1. d4 {[%clk 0:03:00]}  Nf6 {[%clk 0:02:53]} 2. Nf3 {[%clk 0:03:00]}  e6 {[%clk 0:02:51]} 3. Bg5 {[%clk 0:02:59]}  Be7 {[%clk 0:02:50]} 4. e3 {[%clk 0:02:59]}  b6 {[%clk 0:02:49]} 5. Bd3 {[%clk 0:02:57]}  Bb7 {[%clk 0:02:48]} 6. Nbd2 {[%clk 0:02:57]}  d6 {[%clk 0:02:47]} 7. c3 {[%clk 0:02:58]}  a6 {[%clk 0:02:47]} 8. O-O {[%clk 0:02:51]}  Nbd7 {[%clk 0:02:47]} 9. a4 {[%clk 0:02:47]}  h6 {[%clk 0:02:46]} 10. Bxf6 {[%clk 0:02:41]}  Nxf6 {[%clk 0:02:45]} 11. e4 {[%clk 0:02:39]}  c5 {[%clk 0:02:41]} 12. Qe2 {[%clk 0:02:37]}  Nd7 {[%clk 0:02:30]} 13. Nc4 {[%clk 0:02:15]}  Qc7 {[%clk 0:02:25]} 14. Rfc1 {[%clk 0:02:05]}  O-O {[%clk 0:02:24]} 15. h3 {[%clk 0:01:56]}  b5 {[%clk 0:02:19]} 16. Ne3 {[%clk 0:01:50]}  c4 {[%clk 0:02:16]} 17. Bc2 {[%clk 0:01:50]}  e5 {[%clk 0:02:12]} 18. Nf5 {[%clk 0:01:21]}  Rfe8 {[%clk 0:02:09]} 19. Qe3 {[%clk 0:00:59]}  Bf8 {[%clk 0:02:07]} 20. d5 {[%clk 0:00:52]}  Kh7 {[%clk 0:02:03]} 21. Nh2 {[%clk 0:00:48]}  g6 {[%clk 0:02:03]} 22. Ng3 {[%clk 0:00:38]}  h5 {[%clk 0:01:56]} 23. Nf3 {[%clk 0:00:38]}  Bh6 {[%clk 0:01:56]} 24. Ng5+ {[%clk 0:00:38]}  Kg7 {[%clk 0:01:55]} 25. h4 {[%clk 0:00:34]}  Nc5 {[%clk 0:01:45]} 26. Qf3 {[%clk 0:00:33]}  f6 {[%clk 0:01:43]} 27. Nh3 {[%clk 0:00:26]}  Bxc1 {[%clk 0:01:42]} 28. Rxc1 {[%clk 0:00:27]}  Bc8 {[%clk 0:01:37]} 29. Qe3 {[%clk 0:00:24]}  Bg4 {[%clk 0:01:27]} 30. Bd1 {[%clk 0:00:22]}  Qd7 {[%clk 0:01:25]} 31. Bxg4 {[%clk 0:00:20]}  hxg4 {[%clk 0:01:21]} 32. h5 {[%clk 0:00:18]}  gxh3 {[%clk 0:01:21]} 33. hxg6 {[%clk 0:00:18]}  Kxg6 {[%clk 0:01:11]} 34. Nf5 {[%clk 0:00:17]}  Rh8 {[%clk 0:00:53]} 35. gxh3 {[%clk 0:00:15]}  Rag8 {[%clk 0:00:49]} 36. Kh2 {[%clk 0:00:15]}  Kf7 {[%clk 0:00:49]} 37. Rg1 {[%clk 0:00:13]}  Rxg1 {[%clk 0:00:48]} 38. Kxg1 {[%clk 0:00:14]}  Nd3 {[%clk 0:00:44]} 39. Kh2 {[%clk 0:00:13]}  Nf4 {[%clk 0:00:43]} 40. h4 {[%clk 0:00:14]}  Qd8 {[%clk 0:00:38]} 41. Qg3 {[%clk 0:00:13]}  Qg8 {[%clk 0:00:37]} 42. Nxd6+ {[%clk 0:00:14]}  Kf8 {[%clk 0:00:35]} 43. Qxg8+ {[%clk 0:00:11]}  Rxg8 {[%clk 0:00:35]} 44. axb5 {[%clk 0:00:12]}  axb5 {[%clk 0:00:34]} 45. Nxb5 {[%clk 0:00:13]}  Rg2+ {[%clk 0:00:34]} 46. Kh1 {[%clk 0:00:13]}  Rxf2 {[%clk 0:00:34]} 47. Nd6 {[%clk 0:00:14]}  Nd3 {[%clk 0:00:25]} 48. Nxc4 {[%clk 0:00:13]}  Ne1 {[%clk 0:00:25]} 49. Kg1 {[%clk 0:00:11]}  Rf4 {[%clk 0:00:21]} 50. Nd6 {[%clk 0:00:10]}  Nd3 {[%clk 0:00:19]} 51. b4 {[%clk 0:00:09]}  Ke7 {[%clk 0:00:18]} 52. Nf5+ {[%clk 0:00:09]}  Kd7 {[%clk 0:00:19]} 53. Ng3 {[%clk 0:00:08]}  Rxh4 {[%clk 0:00:18]} 54. Kg2 {[%clk 0:00:08]}  Rf4 {[%clk 0:00:18]} 55. Nh5 {[%clk 0:00:07]}  Rg4+ {[%clk 0:00:16]} 56. Kf3 {[%clk 0:00:07]}  Rg6 {[%clk 0:00:16]} 57. Ke3 {[%clk 0:00:05]}  Nf4 {[%clk 0:00:16]} 58. Nxf4 {[%clk 0:00:05]}  exf4+ {[%clk 0:00:17]} 59. Kxf4 {[%clk 0:00:06]}  Kd6 {[%clk 0:00:17]} 60. Kf5 {[%clk 0:00:06]}  Rh6 {[%clk 0:00:16]} 61. c4 {[%clk 0:00:07]}  Kd7 {[%clk 0:00:15]} 62. c5 {[%clk 0:00:07]}  Rh4 {[%clk 0:00:13]} 63. b5 {[%clk 0:00:06]}  Rh2 {[%clk 0:00:11]} 64. b6 {[%clk 0:00:07]}  Rb2 {[%clk 0:00:10]} 65. c6+ {[%clk 0:00:06]}  Kd6 {[%clk 0:00:09]} 66. b7 {[%clk 0:00:06]}  Kc7 {[%clk 0:00:09]} 67. Kxf6 {[%clk 0:00:07]}  Rd2 {[%clk 0:00:09]} 68. Ke6 {[%clk 0:00:07]}  Rd4 {[%clk 0:00:06]} 69. e5 {[%clk 0:00:07]}  Rh4 {[%clk 0:00:05]} 70. d6+ {[%clk 0:00:08]}  Kb8 {[%clk 0:00:04]} 71. d7 {[%clk 0:00:08]}  Rh8 {[%clk 0:00:03]} 72. Kd6 {[%clk 0:00:08]}  Rh6+ {[%clk 0:00:01]} 73. e6 {[%clk 0:00:08]}  Ka7 {[%clk 0:00:01]} 74. d8=Q {[%clk 0:00:08]} 1-0


[Site "https://www.chess.com"]

[Event "Titled Tuesday Blitz July 26 Early 2022"]
[White "Lewtak, Damian"]
[Black "Munkhgal, Gombosuren"]
[WhiteFideId "1141724"]
[BlackFideId "4901266"]
[WhiteElo "2359"]
[BlackElo "2576"]
[Result "0-1"]
[Round "10"]
[TimeControl "180+1"]
[Date "2022.07.26"]
[WhiteClock "0:00:54"]
[BlackClock "0:01:06"]

1. e4 {[%clk 0:03:00]}  d6 {[%clk 0:02:59]} 2. Nc3 {[%clk 0:02:59]}  Nf6 {[%clk 0:02:59]} 3. d4 {[%clk 0:02:58]}  g6 {[%clk 0:02:59]} 4. f4 {[%clk 0:02:58]}  Bg7 {[%clk 0:02:59]} 5. e5 {[%clk 0:02:59]}  Nfd7 {[%clk 0:02:58]} 6. Nf3 {[%clk 0:02:58]}  c5 {[%clk 0:02:58]} 7. exd6 {[%clk 0:02:52]}  O-O {[%clk 0:02:58]} 8. dxc5 {[%clk 0:02:47]}  Nxc5 {[%clk 0:02:54]} 9. Be2 {[%clk 0:02:41]}  exd6 {[%clk 0:02:48]} 10. O-O {[%clk 0:02:41]}  Re8 {[%clk 0:02:43]} 11. Nd5 {[%clk 0:02:40]}  Be6 {[%clk 0:02:38]} 12. c4 {[%clk 0:02:34]}  Bxd5 {[%clk 0:02:36]} 13. cxd5 {[%clk 0:02:32]}  Qb6 {[%clk 0:02:34]} 14. Kh1 {[%clk 0:02:28]}  Ne4 {[%clk 0:02:33]} 15. Qe1 {[%clk 0:02:20]}  Na6 {[%clk 0:02:17]} 16. Bxa6 {[%clk 0:02:14]}  Qxa6 {[%clk 0:02:13]} 17. Be3 {[%clk 0:01:53]}  Bxb2 {[%clk 0:02:04]} 18. Rb1 {[%clk 0:01:52]}  Bc3 {[%clk 0:02:00]} 19. Qh4 {[%clk 0:01:52]}  Bf6 {[%clk 0:01:56]} 20. Qh3 {[%clk 0:01:44]}  Nc3 {[%clk 0:01:55]} 21. Bd4 {[%clk 0:01:41]}  Nxb1 {[%clk 0:01:51]} 22. Rxb1 {[%clk 0:01:33]}  Qd3 {[%clk 0:01:50]} 23. Bxf6 {[%clk 0:01:19]}  Qxb1+ {[%clk 0:01:49]} 24. Ng1 {[%clk 0:01:19]}  Re1 {[%clk 0:01:45]} 25. Bd4 {[%clk 0:01:19]}  Rae8 {[%clk 0:01:39]} 26. Qc3 {[%clk 0:01:02]}  Rc1 {[%clk 0:01:31]} 27. Qa5 {[%clk 0:00:57]}  a6 {[%clk 0:01:12]} 28. h3 {[%clk 0:00:54]}  Rxg1+ {[%clk 0:01:07]} 29. Bxg1 {[%clk 0:00:54]}  Re1 {[%clk 0:01:06]} 0-1


[Site "https://www.chess.com"]

[Event "Titled Tuesday Blitz July 26 Early 2022"]
[White "Ljukin, Sergei"]
[Black "Lopez Del Alamo, Antonio"]
[WhiteFideId "14102200"]
[BlackFideId "2227339"]
[WhiteElo "2312"]
[BlackElo "2079"]
[Result "0-1"]
[Round "10"]
[TimeControl "180+1"]
[Date "2022.07.27"]
[WhiteClock "0:00:01"]
[BlackClock "0:00:20"]

1. e4 {[%clk 0:02:55]}  c5 {[%clk 0:02:59]} 2. Nf3 {[%clk 0:02:55]}  e6 {[%clk 0:02:59]} 3. d4 {[%clk 0:02:55]}  cxd4 {[%clk 0:02:59]} 4. Nxd4 {[%clk 0:02:56]}  Nf6 {[%clk 0:02:59]} 5. Nc3 {[%clk 0:02:56]}  Nc6 {[%clk 0:02:58]} 6. Nxc6 {[%clk 0:02:56]}  bxc6 {[%clk 0:02:58]} 7. e5 {[%clk 0:02:56]}  Nd5 {[%clk 0:02:57]} 8. Ne4 {[%clk 0:02:56]}  Bb7 {[%clk 0:02:56]} 9. Be2 {[%clk 0:02:53]}  c5 {[%clk 0:02:55]} 10. O-O {[%clk 0:02:52]}  Qc7 {[%clk 0:02:55]} 11. f4 {[%clk 0:02:50]}  c4 {[%clk 0:02:50]} 12. Qd4 {[%clk 0:02:23]}  Rc8 {[%clk 0:02:45]} 13. Bf3 {[%clk 0:02:22]}  Be7 {[%clk 0:02:24]} 14. Nd6+ {[%clk 0:02:13]}  Bxd6 {[%clk 0:02:21]} 15. exd6 {[%clk 0:02:13]}  Qc5 {[%clk 0:02:21]} 16. Qxc5 {[%clk 0:01:50]}  Rxc5 {[%clk 0:02:20]} 17. c3 {[%clk 0:01:01]}  O-O {[%clk 0:02:12]} 18. Rd1 {[%clk 0:00:39]}  f5 {[%clk 0:02:00]} 19. Rd4 {[%clk 0:00:38]}  Rfc8 {[%clk 0:01:51]} 20. Bd2 {[%clk 0:00:35]}  Rb5 {[%clk 0:01:49]} 21. b4 {[%clk 0:00:22]}  cxb3 {[%clk 0:01:43]} 22. c4 {[%clk 0:00:23]}  bxa2 {[%clk 0:01:38]} 23. Rxa2 {[%clk 0:00:20]}  Rb1+ {[%clk 0:01:36]} 24. Kf2 {[%clk 0:00:20]}  Nf6 {[%clk 0:01:33]} 25. Rxa7 {[%clk 0:00:18]}  Bxf3 {[%clk 0:01:31]} 26. gxf3 {[%clk 0:00:18]}  Rcb8 {[%clk 0:01:14]} 27. c5 {[%clk 0:00:12]}  Rc8 {[%clk 0:01:12]} 28. Rc7 {[%clk 0:00:12]}  Rbb8 {[%clk 0:01:09]} 29. c6 {[%clk 0:00:10]}  dxc6 {[%clk 0:01:07]} 30. Ba5 {[%clk 0:00:09]}  Rd8 {[%clk 0:00:50]} 31. d7 {[%clk 0:00:09]}  Kf7 {[%clk 0:00:35]} 32. Ra7 {[%clk 0:00:08]}  c5 {[%clk 0:00:27]} 33. Rd2 {[%clk 0:00:06]}  Ke7 {[%clk 0:00:22]} 34. Bxd8+ {[%clk 0:00:06]}  Rxd8 {[%clk 0:00:23]} 35. Rc7 {[%clk 0:00:05]}  Rxd7 {[%clk 0:00:20]} 36. Rcxd7+ {[%clk 0:00:02]}  Nxd7 {[%clk 0:00:21]} 37. Ke2 {[%clk 0:00:02]}  Nf6 {[%clk 0:00:21]} 38. Rc2 {[%clk 0:00:02]}  Kd6 {[%clk 0:00:20]} 39. Rc4 {[%clk 0:00:01]}  Nd5 {[%clk 0:00:20]} 40. Kd3 {[%clk 0:00:01]}  h6 {[%clk 0:00:20]} 0-1


[Site "https://www.chess.com"]

[Event "Titled Tuesday Blitz July 26 Early 2022"]
[White "Maksimovic, Bojan"]
[Black "Bortnyk, Olexandr"]
[WhiteFideId "14408120"]
[BlackFideId "14120828"]
[WhiteElo "2453"]
[BlackElo "2723"]
[Result "0-1"]
[Round "10"]
[TimeControl "180+1"]
[Date "2022.07.26"]
[WhiteClock "0:00:01"]
[BlackClock "0:00:16"]

1. e4 {[%clk 0:03:00]}  d6 {[%clk 0:02:58]} 2. Nf3 {[%clk 0:02:59]}  Nf6 {[%clk 0:02:58]} 3. Nc3 {[%clk 0:02:55]}  e5 {[%clk 0:02:59]} 4. d4 {[%clk 0:02:54]}  Nbd7 {[%clk 0:02:59]} 5. Bc4 {[%clk 0:02:54]}  Be7 {[%clk 0:02:59]} 6. O-O {[%clk 0:02:54]}  c6 {[%clk 0:02:59]} 7. Re1 {[%clk 0:02:54]}  h6 {[%clk 0:02:59]} 8. a4 {[%clk 0:02:54]}  Qc7 {[%clk 0:02:59]} 9. Be3 {[%clk 0:02:48]}  Ng4 {[%clk 0:03:00]} 10. Bc1 {[%clk 0:02:45]}  Ngf6 {[%clk 0:03:00]} 11. Be3 {[%clk 0:02:43]}  Ng4 {[%clk 0:02:48]} 12. Bc1 {[%clk 0:02:38]}  Nf8 {[%clk 0:02:47]} 13. h3 {[%clk 0:02:32]}  Nf6 {[%clk 0:02:47]} 14. a5 {[%clk 0:02:25]}  g5 {[%clk 0:02:46]} 15. d5 {[%clk 0:02:21]}  Ng6 {[%clk 0:02:44]} 16. Be2 {[%clk 0:02:08]}  cxd5 {[%clk 0:02:35]} 17. Bb5+ {[%clk 0:02:01]}  Kf8 {[%clk 0:02:31]} 18. Nxd5 {[%clk 0:01:58]}  Nxd5 {[%clk 0:02:30]} 19. exd5 {[%clk 0:01:59]}  a6 {[%clk 0:02:17]} 20. Bf1 {[%clk 0:01:53]}  Kg7 {[%clk 0:02:13]} 21. c4 {[%clk 0:01:52]}  g4 {[%clk 0:02:08]} 22. hxg4 {[%clk 0:01:48]}  Bxg4 {[%clk 0:02:09]} 23. Qd3 {[%clk 0:01:12]}  Rag8 {[%clk 0:02:02]} 24. Nh2 {[%clk 0:01:09]}  Bd7 {[%clk 0:02:01]} 25. b4 {[%clk 0:01:08]}  Kf8 {[%clk 0:01:58]} 26. Ra3 {[%clk 0:01:06]}  h5 {[%clk 0:01:52]} 27. Kh1 {[%clk 0:01:01]}  h4 {[%clk 0:01:49]} 28. Qf3 {[%clk 0:00:58]}  Qd8 {[%clk 0:01:21]} 29. Bd3 {[%clk 0:00:50]}  Bg5 {[%clk 0:01:18]} 30. Bxg6 {[%clk 0:00:20]}  Rxg6 {[%clk 0:01:18]} 31. c5 {[%clk 0:00:20]}  Bxc1 {[%clk 0:01:13]} 32. Rxc1 {[%clk 0:00:21]}  Qg5 {[%clk 0:01:13]} 33. Rg1 {[%clk 0:00:21]}  h3 {[%clk 0:01:09]} 34. g3 {[%clk 0:00:18]}  Rh4 {[%clk 0:01:06]} 35. c6 {[%clk 0:00:11]}  bxc6 {[%clk 0:01:07]} 36. dxc6 {[%clk 0:00:12]}  Bf5 {[%clk 0:00:57]} 37. Re1 {[%clk 0:00:12]}  Be4 {[%clk 0:00:46]} 38. Rxe4 {[%clk 0:00:07]}  Qc1+ {[%clk 0:00:43]} 39. Nf1 {[%clk 0:00:07]}  Rxe4 {[%clk 0:00:42]} 40. Qxe4 {[%clk 0:00:02]}  Qxf1+ {[%clk 0:00:38]} 41. Kh2 {[%clk 0:00:03]}  Qxf2+ {[%clk 0:00:39]} 42. Kxh3 {[%clk 0:00:03]}  Qf1+ {[%clk 0:00:36]} 43. Kh4 {[%clk 0:00:01]}  Qc1 {[%clk 0:00:17]} 44. Ra2 {[%clk 0:00:01]}  Qh6# {[%clk 0:00:16]} 0-1


[Site "https://www.chess.com"]

[Event "Titled Tuesday Blitz July 26 Early 2022"]
[White "Olivares Olivares, Claudio"]
[Black "Omariev, Maksim"]
[WhiteFideId "3400786"]
[BlackFideId "4193423"]
[WhiteElo "2249"]
[BlackElo "2510"]
[Result "0-1"]
[Round "10"]
[TimeControl "180+1"]
[Date "2022.07.27"]
[WhiteClock "0:00:44"]
[BlackClock "0:00:32"]

1. e4 {[%clk 0:02:52]}  c5 {[%clk 0:02:59]} 2. Nf3 {[%clk 0:02:52]}  d6 {[%clk 0:03:00]} 3. d4 {[%clk 0:02:52]}  cxd4 {[%clk 0:03:01]} 4. Nxd4 {[%clk 0:02:53]}  Nf6 {[%clk 0:03:01]} 5. Nc3 {[%clk 0:02:53]}  a6 {[%clk 0:03:02]} 6. Bc4 {[%clk 0:02:54]}  e6 {[%clk 0:03:02]} 7. Bb3 {[%clk 0:02:54]}  b5 {[%clk 0:03:00]} 8. a3 {[%clk 0:02:52]}  Nbd7 {[%clk 0:02:53]} 9. g4 {[%clk 0:02:52]}  Nc5 {[%clk 0:02:52]} 10. Qe2 {[%clk 0:02:51]}  Bb7 {[%clk 0:02:50]} 11. f3 {[%clk 0:02:50]}  Nxb3 {[%clk 0:02:44]} 12. cxb3 {[%clk 0:02:46]}  Be7 {[%clk 0:02:45]} 13. h4 {[%clk 0:02:32]}  Rc8 {[%clk 0:02:34]} 14. h5 {[%clk 0:02:31]}  Nd7 {[%clk 0:02:18]} 15. b4 {[%clk 0:02:26]}  Bh4+ {[%clk 0:02:16]} 16. Kf1 {[%clk 0:02:26]}  Nb6 {[%clk 0:02:00]} 17. Qg2 {[%clk 0:02:03]}  Bf6 {[%clk 0:01:57]} 18. Nde2 {[%clk 0:02:01]}  d5 {[%clk 0:01:52]} 19. g5 {[%clk 0:02:00]}  Bxc3 {[%clk 0:01:46]} 20. Nxc3 {[%clk 0:01:54]}  dxe4 {[%clk 0:01:46]} 21. fxe4 {[%clk 0:01:52]}  O-O {[%clk 0:01:36]} 22. h6 {[%clk 0:01:47]}  g6 {[%clk 0:01:25]} 23. Be3 {[%clk 0:01:44]}  Nc4 {[%clk 0:01:21]} 24. Bc5 {[%clk 0:01:41]}  Rxc5 {[%clk 0:01:20]} 25. Qf2 {[%clk 0:01:36]}  Rxg5 {[%clk 0:01:15]} 26. Rd1 {[%clk 0:01:34]}  Qe7 {[%clk 0:01:15]} 27. Rh3 {[%clk 0:01:31]}  f5 {[%clk 0:01:09]} 28. e5 {[%clk 0:01:27]}  Nxe5 {[%clk 0:01:08]} 29. Qd4 {[%clk 0:01:09]}  Nf3 {[%clk 0:01:00]} 30. Qb6 {[%clk 0:01:02]}  Rg1+ {[%clk 0:00:57]} 31. Kf2 {[%clk 0:01:02]}  Rxd1 {[%clk 0:00:54]} 32. Nxd1 {[%clk 0:01:03]}  Ng5 {[%clk 0:00:46]} 33. Rh2 {[%clk 0:00:59]}  Ne4+ {[%clk 0:00:46]} 34. Ke1 {[%clk 0:00:56]}  f4 {[%clk 0:00:45]} 35. Nf2 {[%clk 0:00:50]}  Nxf2 {[%clk 0:00:43]} 36. Rxf2 {[%clk 0:00:51]}  f3 {[%clk 0:00:42]} 37. Qd4 {[%clk 0:00:47]}  e5 {[%clk 0:00:40]} 38. Qb6 {[%clk 0:00:46]}  e4 {[%clk 0:00:39]} 39. Rc2 {[%clk 0:00:45]}  e3 {[%clk 0:00:33]} 40. Rc7 {[%clk 0:00:44]}  f2+ {[%clk 0:00:32]} 0-1


[Site "https://www.chess.com"]

[Event "Titled Tuesday Blitz July 26 Early 2022"]
[White "Plazuelo Pascual, Juan"]
[Black "Goltsev, Dmitry"]
[WhiteFideId "32059566"]
[BlackFideId "24176710"]
[WhiteElo "2416"]
[BlackElo "2258"]
[Result "1-0"]
[Round "10"]
[TimeControl "180+1"]
[Date "2022.07.26"]
[WhiteClock "0:00:30"]
[BlackClock "0:00:06"]

1. d4 {[%clk 0:03:00]}  Nf6 {[%clk 0:02:41]} 2. c4 {[%clk 0:03:00]}  e6 {[%clk 0:02:41]} 3. Nc3 {[%clk 0:02:59]}  Bb4 {[%clk 0:02:42]} 4. Qc2 {[%clk 0:02:59]}  Qe7 {[%clk 0:02:41]} 5. e4 {[%clk 0:02:58]}  Bxc3+ {[%clk 0:02:41]} 6. bxc3 {[%clk 0:02:58]}  d6 {[%clk 0:02:41]} 7. Bd3 {[%clk 0:02:57]}  e5 {[%clk 0:02:40]} 8. Ne2 {[%clk 0:02:57]}  O-O {[%clk 0:02:39]} 9. O-O {[%clk 0:02:57]}  Nbd7 {[%clk 0:02:39]} 10. Ng3 {[%clk 0:02:52]}  Nb6 {[%clk 0:02:38]} 11. f4 {[%clk 0:02:50]}  h6 {[%clk 0:02:31]} 12. a4 {[%clk 0:02:50]}  a5 {[%clk 0:02:30]} 13. fxe5 {[%clk 0:02:50]}  dxe5 {[%clk 0:02:30]} 14. Ba3 {[%clk 0:02:50]}  Qd8 {[%clk 0:02:26]} 15. dxe5 {[%clk 0:02:44]}  Ng4 {[%clk 0:02:25]} 16. Bxf8 {[%clk 0:02:36]}  Qxf8 {[%clk 0:01:50]} 17. Nf5 {[%clk 0:02:18]}  Qc5+ {[%clk 0:01:45]} 18. Nd4 {[%clk 0:02:16]}  Ne3 {[%clk 0:01:37]} 19. Qf2 {[%clk 0:02:15]}  Nxf1 {[%clk 0:01:34]} 20. Rxf1 {[%clk 0:02:15]}  Be6 {[%clk 0:01:31]} 21. Nxe6 {[%clk 0:01:27]}  Qxf2+ {[%clk 0:01:32]} 22. Rxf2 {[%clk 0:01:28]}  fxe6 {[%clk 0:01:32]} 23. c5 {[%clk 0:01:28]}  Nd7 {[%clk 0:01:31]} 24. c6 {[%clk 0:01:27]}  bxc6 {[%clk 0:01:29]} 25. Bc4 {[%clk 0:01:27]}  Nc5 {[%clk 0:01:26]} 26. Rb2 {[%clk 0:01:22]}  Re8 {[%clk 0:01:22]} 27. Kf1 {[%clk 0:01:18]}  Nxa4 {[%clk 0:01:21]} 28. Rb7 {[%clk 0:01:16]}  Nxc3 {[%clk 0:01:20]} 29. Rxc7 {[%clk 0:01:16]}  Nxe4 {[%clk 0:01:20]} 30. Ke2 {[%clk 0:01:09]}  Nc3+ {[%clk 0:01:15]} 31. Kd2 {[%clk 0:00:59]}  Nd5 {[%clk 0:00:38]} 32. Rxc6 {[%clk 0:00:59]}  Kf7 {[%clk 0:00:37]} 33. Ra6 {[%clk 0:00:58]}  Rd8 {[%clk 0:00:32]} 34. Ra7+ {[%clk 0:00:57]}  Kg6 {[%clk 0:00:29]} 35. Ke1 {[%clk 0:00:57]}  Ne3 {[%clk 0:00:22]} 36. Bxe6 {[%clk 0:00:54]}  Nxg2+ {[%clk 0:00:21]} 37. Kf2 {[%clk 0:00:53]}  Nf4 {[%clk 0:00:21]} 38. Bf7+ {[%clk 0:00:34]}  Kf5 {[%clk 0:00:18]} 39. Rxa5 {[%clk 0:00:34]}  Nd3+ {[%clk 0:00:17]} 40. Kg3 {[%clk 0:00:30]}  Nxe5 {[%clk 0:00:18]} 41. Bg6+ {[%clk 0:00:30]}  Kf6 {[%clk 0:00:15]} 42. Ra6+ {[%clk 0:00:30]}  Ke7 {[%clk 0:00:06]} 43. Bf5 {[%clk 0:00:30]} 1-0


[Site "https://www.chess.com"]